[Event "Titled Tuesday Blitz March 08 Late 2022"]
[White "Gulecyuz, Deniz"]
[Black "Galego, Luis"]
[WhiteFideId "30921341"]
[BlackFideId "1900072"]
[WhiteElo "1923"]
[BlackElo "2516"]
[Result "1/2-1/2"]
[Round "03"]
[TimeControl "180+1"]
[Date "2022.03.09"]
[WhiteClock "0:00:09"]
[BlackClock "0:00:28"]

1. Nf3 {[%clk 0:03:00]}  Nf6 {[%clk 0:02:57]} 2. g3 {[%clk 0:03:00]}  g6 {[%clk 0:02:57]} 3. Bg2 {[%clk 0:03:01]}  Bg7 {[%clk 0:02:57]} 4. c4 {[%clk 0:03:01]}  O-O {[%clk 0:02:57]} 5. Nc3 {[%clk 0:03:02]}  c6 {[%clk 0:02:58]} 6. O-O {[%clk 0:03:03]}  d5 {[%clk 0:02:58]} 7. d3 {[%clk 0:03:01]}  dxc4 {[%clk 0:02:53]} 8. dxc4 {[%clk 0:03:01]}  Qxd1 {[%clk 0:02:53]} 9. Rxd1 {[%clk 0:03:02]}  Nbd7 {[%clk 0:02:51]} 10. Be3 {[%clk 0:02:38]}  Ng4 {[%clk 0:02:49]} 11. Bd2 {[%clk 0:02:26]}  Nde5 {[%clk 0:02:43]} 12. Nxe5 {[%clk 0:02:18]}  Nxe5 {[%clk 0:02:42]} 13. b3 {[%clk 0:02:19]}  Rd8 {[%clk 0:02:38]} 14. Rac1 {[%clk 0:02:10]}  Bg4 {[%clk 0:02:35]} 15. h3 {[%clk 0:02:06]}  Bf5 {[%clk 0:02:29]} 16. Na4 {[%clk 0:01:51]}  h5 {[%clk 0:01:52]} 17. Be3 {[%clk 0:01:37]}  Nd7 {[%clk 0:01:45]} 18. Rd2 {[%clk 0:01:20]}  Kf8 {[%clk 0:01:42]} 19. Rcd1 {[%clk 0:01:19]}  Ke8 {[%clk 0:01:42]} 20. Nc5 {[%clk 0:00:58]}  Nxc5 {[%clk 0:01:41]} 21. Bxc5 {[%clk 0:00:59]}  Rxd2 {[%clk 0:01:40]} 22. Rxd2 {[%clk 0:00:58]}  Be5 {[%clk 0:01:38]} 23. e4 {[%clk 0:00:45]}  Be6 {[%clk 0:01:35]} 24. f4 {[%clk 0:00:45]}  Bc7 {[%clk 0:01:33]} 25. Be3 {[%clk 0:00:33]}  a5 {[%clk 0:01:29]} 26. a4 {[%clk 0:00:30]}  Rd8 {[%clk 0:01:15]} 27. Rxd8+ {[%clk 0:00:26]}  Kxd8 {[%clk 0:01:15]} 28. Kf2 {[%clk 0:00:23]}  b5 {[%clk 0:01:14]} 29. cxb5 {[%clk 0:00:20]}  cxb5 {[%clk 0:01:14]} 30. axb5 {[%clk 0:00:21]}  Bxb3 {[%clk 0:01:13]} 31. e5 {[%clk 0:00:20]}  a4 {[%clk 0:01:10]} 32. b6 {[%clk 0:00:20]}  Bb8 {[%clk 0:01:07]} 33. Bc5 {[%clk 0:00:20]}  Kd7 {[%clk 0:01:06]} 34. Ke3 {[%clk 0:00:19]}  f6 {[%clk 0:01:01]} 35. exf6 {[%clk 0:00:19]}  exf6 {[%clk 0:01:00]} 36. h4 {[%clk 0:00:20]}  Ke6 {[%clk 0:00:58]} 37. Kd4 {[%clk 0:00:20]}  Kf5 {[%clk 0:00:58]} 38. Bf3 {[%clk 0:00:20]}  Bc2 {[%clk 0:00:55]} 39. Kc3 {[%clk 0:00:20]}  Be4 {[%clk 0:00:55]} 40. Bd1 {[%clk 0:00:20]}  Bc6 {[%clk 0:00:52]} 41. Kb4 {[%clk 0:00:21]}  g5 {[%clk 0:00:47]} 42. hxg5 {[%clk 0:00:15]}  fxg5 {[%clk 0:00:47]} 43. Bxh5 {[%clk 0:00:15]}  gxf4 {[%clk 0:00:44]} 44. gxf4 {[%clk 0:00:16]}  Bxf4 {[%clk 0:00:44]} 45. Bd1 {[%clk 0:00:15]}  Bd2+ {[%clk 0:00:43]} 46. Kc4 {[%clk 0:00:14]}  Ke6 {[%clk 0:00:43]} 47. Bb4 {[%clk 0:00:11]}  Bf4 {[%clk 0:00:42]} 48. Bc5 {[%clk 0:00:12]}  Kd7 {[%clk 0:00:42]} 49. Kb4 {[%clk 0:00:11]}  Bd2+ {[%clk 0:00:42]} 50. Ka3 {[%clk 0:00:11]}  Bc1+ {[%clk 0:00:40]} 51. Kb4 {[%clk 0:00:12]}  a3 {[%clk 0:00:39]} 52. Bb3 {[%clk 0:00:10]}  Kc8 {[%clk 0:00:37]} 53. Ka5 {[%clk 0:00:10]}  Kb7 {[%clk 0:00:36]} 54. Kb4 {[%clk 0:00:07]}  Kb8 {[%clk 0:00:34]} 55. Kc3 {[%clk 0:00:07]}  Kb7 {[%clk 0:00:33]} 56. Kc2 {[%clk 0:00:07]}  Bb2 {[%clk 0:00:32]} 57. Kb1 {[%clk 0:00:08]}  Be4+ {[%clk 0:00:31]} 58. Ka2 {[%clk 0:00:08]}  Kc6 {[%clk 0:00:30]} 59. Bxa3 {[%clk 0:00:07]}  Bd4 {[%clk 0:00:28]} 60. Bb2 {[%clk 0:00:05]}  Bxb6 {[%clk 0:00:28]} 61. Ba3 {[%clk 0:00:06]}  Bd4 {[%clk 0:00:28]} 62. Bb2 {[%clk 0:00:07]}  Bc5 {[%clk 0:00:28]} 63. Ba3 {[%clk 0:00:07]}  Be3 {[%clk 0:00:29]} 64. Bb2 {[%clk 0:00:08]}  Kb5 {[%clk 0:00:29]} 65. Ba3 {[%clk 0:00:09]}  Bd3 {[%clk 0:00:28]} 66. Bb2 {[%clk 0:00:09]}  Bc4 {[%clk 0:00:27]} 67. Bxc4+ {[%clk 0:00:09]}  Kxc4 {[%clk 0:00:28]} 1/2-1/2


[Site "https://www.chess.com"]

[Event "Titled Tuesday Blitz March 08 Late 2022"]
[White "Hnydiuk, Aleksander"]
[Black "Ardila, Oscar Humberto"]
[WhiteFideId "1109057"]
[BlackFideId "4404742"]
[WhiteElo "2374"]
[BlackElo "1966"]
[Result "1-0"]
[Round "03"]
[TimeControl "180+1"]
[Date "2022.03.09"]
[WhiteClock "0:01:17"]
[BlackClock "0:00:44"]

1. Nf3 {[%clk 0:03:00]}  Nf6 {[%clk 0:02:57]} 2. c4 {[%clk 0:03:00]}  e6 {[%clk 0:02:56]} 3. g3 {[%clk 0:03:00]}  Be7 {[%clk 0:02:56]} 4. Bg2 {[%clk 0:03:01]}  O-O {[%clk 0:02:56]} 5. O-O {[%clk 0:03:01]}  d6 {[%clk 0:02:57]} 6. d4 {[%clk 0:02:59]}  Nbd7 {[%clk 0:02:56]} 7. Nc3 {[%clk 0:02:58]}  c5 {[%clk 0:02:56]} 8. e4 {[%clk 0:02:49]}  cxd4 {[%clk 0:02:54]} 9. Nxd4 {[%clk 0:02:50]}  a6 {[%clk 0:02:54]} 10. Be3 {[%clk 0:02:48]}  Qc7 {[%clk 0:02:53]} 11. Rc1 {[%clk 0:02:48]}  Rb8 {[%clk 0:02:47]} 12. f4 {[%clk 0:02:46]}  b6 {[%clk 0:02:46]} 13. b3 {[%clk 0:02:39]}  Bb7 {[%clk 0:02:46]} 14. f5 {[%clk 0:02:39]}  e5 {[%clk 0:02:20]} 15. Nd5 {[%clk 0:02:39]}  Nxd5 {[%clk 0:02:18]} 16. cxd5 {[%clk 0:02:39]}  Qd8 {[%clk 0:02:14]} 17. Nc6 {[%clk 0:02:39]}  Qe8 {[%clk 0:01:41]} 18. Nxb8 {[%clk 0:02:38]}  Qxb8 {[%clk 0:01:41]} 19. Qd2 {[%clk 0:02:31]}  h6 {[%clk 0:01:40]} 20. Rc2 {[%clk 0:02:18]}  a5 {[%clk 0:01:36]} 21. Rfc1 {[%clk 0:02:16]}  Nc5 {[%clk 0:01:36]} 22. Rc3 {[%clk 0:02:04]}  Qd8 {[%clk 0:01:27]} 23. a3 {[%clk 0:02:02]}  a4 {[%clk 0:01:15]} 24. bxa4 {[%clk 0:01:59]}  Bg5 {[%clk 0:01:08]} 25. Bxg5 {[%clk 0:01:53]}  Qxg5 {[%clk 0:01:08]} 26. Qxg5 {[%clk 0:01:52]}  hxg5 {[%clk 0:01:09]} 27. Rb1 {[%clk 0:01:48]}  Ra8 {[%clk 0:01:05]} 28. Rxb6 {[%clk 0:01:45]}  Ra6 {[%clk 0:00:55]} 29. Rxa6 {[%clk 0:01:39]}  Bxa6 {[%clk 0:00:55]} 30. a5 {[%clk 0:01:30]}  Kf8 {[%clk 0:00:54]} 31. Bf1 {[%clk 0:01:19]}  Bxf1 {[%clk 0:00:48]} 32. Kxf1 {[%clk 0:01:20]}  Nxe4 {[%clk 0:00:46]} 33. Rc8+ {[%clk 0:01:19]}  Ke7 {[%clk 0:00:45]} 34. a6 {[%clk 0:01:19]}  Kd7 {[%clk 0:00:43]} 35. a7 {[%clk 0:01:18]}  Kxc8 {[%clk 0:00:43]} 36. a8=Q+ {[%clk 0:01:18]}  Kd7 {[%clk 0:00:44]} 37. Qb7+ {[%clk 0:01:17]} 1-0


[Site "https://www.chess.com"]

[Event "Titled Tuesday Blitz March 08 Late 2022"]
[White "Hryshchenko, Kamila"]
[Black "Ibarra Jerez, Jose Carlos"]
[WhiteFideId "14147491"]
[BlackFideId "2226332"]
[WhiteElo "1929"]
[BlackElo "2626"]
[Result "0-1"]
[Round "03"]
[TimeControl "180+1"]
[Date "2022.03.08"]
[WhiteClock "0:00:13"]
[BlackClock "0:00:14"]

1. e4 {[%clk 0:02:34]}  c5 {[%clk 0:02:59]} 2. Nf3 {[%clk 0:02:34]}  e6 {[%clk 0:02:59]} 3. Be2 {[%clk 0:02:34]}  Nc6 {[%clk 0:02:57]} 4. d4 {[%clk 0:02:34]}  cxd4 {[%clk 0:02:56]} 5. Nxd4 {[%clk 0:02:35]}  Nf6 {[%clk 0:02:56]} 6. Nc3 {[%clk 0:02:34]}  Bb4 {[%clk 0:02:55]} 7. O-O {[%clk 0:02:34]}  Bxc3 {[%clk 0:02:47]} 8. bxc3 {[%clk 0:02:35]}  Nxe4 {[%clk 0:02:47]} 9. Bd3 {[%clk 0:02:35]}  d5 {[%clk 0:02:32]} 10. Nxc6 {[%clk 0:02:36]}  bxc6 {[%clk 0:02:32]} 11. Ba3 {[%clk 0:02:36]}  c5 {[%clk 0:02:07]} 12. Bxe4 {[%clk 0:02:36]}  dxe4 {[%clk 0:02:08]} 13. Qxd8+ {[%clk 0:02:36]}  Kxd8 {[%clk 0:02:09]} 14. Bxc5 {[%clk 0:02:37]}  f6 {[%clk 0:01:42]} 15. Rfd1+ {[%clk 0:02:34]}  Ke8 {[%clk 0:01:42]} 16. Rab1 {[%clk 0:02:30]}  Kf7 {[%clk 0:01:38]} 17. h3 {[%clk 0:02:26]}  e5 {[%clk 0:01:37]} 18. a4 {[%clk 0:02:26]}  Re8 {[%clk 0:01:17]} 19. a5 {[%clk 0:02:26]}  h5 {[%clk 0:01:08]} 20. Rd6 {[%clk 0:02:24]}  Re6 {[%clk 0:01:01]} 21. Rd8 {[%clk 0:02:23]}  Re8 {[%clk 0:00:59]} 22. Rxe8 {[%clk 0:02:15]}  Kxe8 {[%clk 0:00:59]} 23. Rb4 {[%clk 0:02:16]}  Ba6 {[%clk 0:00:44]} 24. Rxe4 {[%clk 0:02:13]}  Rc8 {[%clk 0:00:45]} 25. Bxa7 {[%clk 0:02:11]}  Rxc3 {[%clk 0:00:44]} 26. f4 {[%clk 0:01:50]}  Rxc2 {[%clk 0:00:30]} 27. fxe5 {[%clk 0:01:50]}  Bb7 {[%clk 0:00:31]} 28. Rb4 {[%clk 0:01:37]}  Bxg2 {[%clk 0:00:31]} 29. exf6 {[%clk 0:01:23]}  gxf6 {[%clk 0:00:32]} 30. Bf2 {[%clk 0:01:24]}  Bc6 {[%clk 0:00:18]} 31. a6 {[%clk 0:01:19]}  Ra2 {[%clk 0:00:17]} 32. a7 {[%clk 0:01:19]}  Kd7 {[%clk 0:00:17]} 33. Rf4 {[%clk 0:01:16]}  Ke6 {[%clk 0:00:16]} 34. Kh2 {[%clk 0:01:15]}  h4 {[%clk 0:00:15]} 35. Rxh4 {[%clk 0:00:32]}  Rxf2+ {[%clk 0:00:14]} 36. Kg3 {[%clk 0:00:32]}  Rf3+ {[%clk 0:00:14]} 37. Kg4 {[%clk 0:00:29]}  Ra3 {[%clk 0:00:14]} 38. Rh7 {[%clk 0:00:27]}  Bd7 {[%clk 0:00:14]} 39. h4 {[%clk 0:00:26]}  Rxa7 {[%clk 0:00:14]} 40. h5 {[%clk 0:00:24]}  Ke5+ {[%clk 0:00:14]} 41. Kg3 {[%clk 0:00:23]}  Ra3+ {[%clk 0:00:14]} 42. Kf2 {[%clk 0:00:22]}  Bf5 {[%clk 0:00:14]} 43. Rb7 {[%clk 0:00:17]}  Rh3 {[%clk 0:00:13]} 44. Rb5+ {[%clk 0:00:15]}  Kf4 {[%clk 0:00:13]} 45. Rb6 {[%clk 0:00:14]}  Kg5 {[%clk 0:00:12]} 46. Rb5 {[%clk 0:00:15]}  Rxh5 {[%clk 0:00:12]} 47. Kg3 {[%clk 0:00:13]}  Rh3+ {[%clk 0:00:12]} 48. Kg2 {[%clk 0:00:14]}  Ra3 {[%clk 0:00:13]} 49. Rb4 {[%clk 0:00:14]}  Bg4 {[%clk 0:00:13]} 50. Kf2 {[%clk 0:00:14]}  f5 {[%clk 0:00:13]} 51. Kg2 {[%clk 0:00:14]}  f4 {[%clk 0:00:14]} 52. Kf2 {[%clk 0:00:14]}  Ra2+ {[%clk 0:00:14]} 53. Kg1 {[%clk 0:00:14]}  Rd2 {[%clk 0:00:13]} 54. Kf1 {[%clk 0:00:14]}  Bf3 {[%clk 0:00:13]} 55. Ke1 {[%clk 0:00:14]}  Re2+ {[%clk 0:00:13]} 56. Kf1 {[%clk 0:00:14]}  Ra2 {[%clk 0:00:13]} 57. Ke1 {[%clk 0:00:15]}  Kg4 {[%clk 0:00:14]} 58. Kf1 {[%clk 0:00:15]}  Kg3 {[%clk 0:00:14]} 59. Ke1 {[%clk 0:00:15]}  Re2+ {[%clk 0:00:14]} 60. Kf1 {[%clk 0:00:15]}  Rd2 {[%clk 0:00:14]} 61. Rb1 {[%clk 0:00:15]}  Rh2 {[%clk 0:00:13]} 62. Ke1 {[%clk 0:00:13]}  Rh1+ {[%clk 0:00:14]} 0-1


[Site "https://www.chess.com"]

[Event "Titled Tuesday Blitz March 08 Late 2022"]
[White "Kanyamarala, Trisha"]
[Black "Pinheiro, Iung Alicio de O."]
[WhiteFideId "45004722"]
[BlackFideId "2104350"]
[WhiteElo "2433"]
[BlackElo "2610"]
[Result "0-1"]
[Round "03"]
[TimeControl "180+1"]
[Date "2022.03.09"]
[WhiteClock "0:00:10"]
[BlackClock "0:00:14"]

1. c4 {[%clk 0:02:51]}  c5 {[%clk 0:02:57]} 2. Nc3 {[%clk 0:02:50]}  g6 {[%clk 0:02:56]} 3. Nf3 {[%clk 0:02:49]}  Bg7 {[%clk 0:02:55]} 4. g3 {[%clk 0:02:49]}  Nc6 {[%clk 0:02:55]} 5. Bg2 {[%clk 0:02:49]}  d6 {[%clk 0:02:56]} 6. O-O {[%clk 0:02:48]}  Be6 {[%clk 0:02:56]} 7. d3 {[%clk 0:02:47]}  Qc8 {[%clk 0:02:55]} 8. Re1 {[%clk 0:02:46]}  Bh3 {[%clk 0:02:55]} 9. Bh1 {[%clk 0:02:44]}  h5 {[%clk 0:02:54]} 10. a3 {[%clk 0:02:38]}  h4 {[%clk 0:02:53]} 11. Rb1 {[%clk 0:02:31]}  hxg3 {[%clk 0:02:51]} 12. fxg3 {[%clk 0:02:31]}  Qf5 {[%clk 0:02:18]} 13. Nd5 {[%clk 0:02:26]}  O-O-O {[%clk 0:01:56]} 14. b4 {[%clk 0:02:23]}  cxb4 {[%clk 0:01:52]} 15. axb4 {[%clk 0:02:24]}  Bg4 {[%clk 0:01:51]} 16. Ne3 {[%clk 0:02:15]}  Qh5 {[%clk 0:01:43]} 17. Nxg4 {[%clk 0:02:14]}  Qxg4 {[%clk 0:01:44]} 18. b5 {[%clk 0:02:10]}  Nd4 {[%clk 0:01:43]} 19. Be3 {[%clk 0:02:09]}  Qh3 {[%clk 0:01:25]} 20. Bxd4 {[%clk 0:02:04]}  Bxd4+ {[%clk 0:01:24]} 21. e3 {[%clk 0:02:04]}  Bb6 {[%clk 0:01:13]} 22. d4 {[%clk 0:01:56]}  Nf6 {[%clk 0:01:12]} 23. Bg2 {[%clk 0:01:54]}  Qh5 {[%clk 0:01:10]} 24. Qc2 {[%clk 0:01:52]}  Kb8 {[%clk 0:01:07]} 25. Rbc1 {[%clk 0:01:46]}  Rc8 {[%clk 0:01:07]} 26. Nd2 {[%clk 0:01:37]}  Qxh2+ {[%clk 0:01:05]} 27. Kf1 {[%clk 0:01:35]}  Qxg3 {[%clk 0:01:01]} 28. Ne4 {[%clk 0:01:26]}  Qh4 {[%clk 0:00:42]} 29. Nxf6 {[%clk 0:01:23]}  Qxf6+ {[%clk 0:00:43]} 30. Kg1 {[%clk 0:01:22]}  e5 {[%clk 0:00:42]} 31. Qe4 {[%clk 0:01:21]}  Qe7 {[%clk 0:00:42]} 32. Rf1 {[%clk 0:01:15]}  f5 {[%clk 0:00:41]} 33. Qd5 {[%clk 0:01:14]}  exd4 {[%clk 0:00:39]} 34. exd4 {[%clk 0:01:15]}  Qg7 {[%clk 0:00:33]} 35. Qxd6+ {[%clk 0:01:08]}  Bc7 {[%clk 0:00:29]} 36. Qd5 {[%clk 0:01:07]}  Bh2+ {[%clk 0:00:28]} 37. Kf2 {[%clk 0:01:07]}  Rcd8 {[%clk 0:00:28]} 38. Qc5 {[%clk 0:01:01]}  Rxd4 {[%clk 0:00:25]} 39. Rcd1 {[%clk 0:00:51]}  Be5 {[%clk 0:00:24]} 40. Rfe1 {[%clk 0:00:40]}  Rhd8 {[%clk 0:00:21]} 41. Bf3 {[%clk 0:00:32]}  Rd2+ {[%clk 0:00:19]} 42. Rxd2 {[%clk 0:00:15]}  Rxd2+ {[%clk 0:00:20]} 43. Kf1 {[%clk 0:00:13]}  Bc7 {[%clk 0:00:15]} 44. Re8+ {[%clk 0:00:10]}  Rd8 {[%clk 0:00:14]} 0-1


[Site "https://www.chess.com"]

[Event "Titled Tuesday Blitz March 08 Late 2022"]
[White "Karttunen, Mika"]
[Black "Martinez Reyes, Pedro Ramon"]
[WhiteFideId "502081"]
[BlackFideId "3901807"]
[WhiteElo "2671"]
[BlackElo "2451"]
[Result "1-0"]
[Round "03"]
[TimeControl "180+1"]
[Date "2022.03.09"]
[WhiteClock "0:00:10"]
[BlackClock "0:00:21"]

1. d4 {[%clk 0:03:00]}  d5 {[%clk 0:02:58]} 2. c4 {[%clk 0:03:00]}  Nf6 {[%clk 0:02:50]} 3. cxd5 {[%clk 0:02:57]}  c6 {[%clk 0:02:50]} 4. dxc6 {[%clk 0:02:45]}  Nxc6 {[%clk 0:02:50]} 5. e3 {[%clk 0:02:37]}  e5 {[%clk 0:02:50]} 6. Nf3 {[%clk 0:02:22]}  Bg4 {[%clk 0:02:42]} 7. Bb5 {[%clk 0:02:16]}  Bb4+ {[%clk 0:02:40]} 8. Bd2 {[%clk 0:02:03]}  Qa5 {[%clk 0:02:30]} 9. Bxc6+ {[%clk 0:01:52]}  bxc6 {[%clk 0:02:31]} 10. a3 {[%clk 0:01:44]}  Bxd2+ {[%clk 0:02:28]} 11. Qxd2 {[%clk 0:01:44]}  Qxd2+ {[%clk 0:02:25]} 12. Nbxd2 {[%clk 0:01:44]}  exd4 {[%clk 0:02:22]} 13. Nxd4 {[%clk 0:01:43]}  c5 {[%clk 0:02:09]} 14. Nb5 {[%clk 0:01:43]}  O-O {[%clk 0:02:07]} 15. Nd6 {[%clk 0:01:16]}  Rab8 {[%clk 0:01:56]} 16. N6c4 {[%clk 0:01:15]}  Rfd8 {[%clk 0:01:53]} 17. O-O {[%clk 0:01:10]}  Rd3 {[%clk 0:01:39]} 18. f3 {[%clk 0:01:01]}  Be6 {[%clk 0:01:37]} 19. Rfe1 {[%clk 0:00:49]}  Rbd8 {[%clk 0:01:34]} 20. Re2 {[%clk 0:00:49]}  Nd5 {[%clk 0:01:26]} 21. Kf2 {[%clk 0:00:49]}  f5 {[%clk 0:01:24]} 22. Rc1 {[%clk 0:00:47]}  f4 {[%clk 0:01:22]} 23. Ne4 {[%clk 0:00:36]}  fxe3+ {[%clk 0:01:17]} 24. Nxe3 {[%clk 0:00:36]}  Nf4 {[%clk 0:01:16]} 25. Rec2 {[%clk 0:00:32]}  Bb3 {[%clk 0:00:54]} 26. Rc3 {[%clk 0:00:26]}  c4 {[%clk 0:00:50]} 27. Nxc4 {[%clk 0:00:16]}  Bxc4 {[%clk 0:00:45]} 28. Rxc4 {[%clk 0:00:17]}  Rb3 {[%clk 0:00:46]} 29. R1c2 {[%clk 0:00:16]}  Nd3+ {[%clk 0:00:45]} 30. Kg3 {[%clk 0:00:16]}  Nxb2 {[%clk 0:00:44]} 31. Rb4 {[%clk 0:00:16]}  Rxb4 {[%clk 0:00:42]} 32. axb4 {[%clk 0:00:17]}  Nd3 {[%clk 0:00:43]} 33. b5 {[%clk 0:00:16]}  Rd7 {[%clk 0:00:32]} 34. h4 {[%clk 0:00:13]}  Ne5 {[%clk 0:00:31]} 35. Rc5 {[%clk 0:00:12]}  Nd3 {[%clk 0:00:29]} 36. Rc8+ {[%clk 0:00:10]}  Kf7 {[%clk 0:00:30]} 37. Ng5+ {[%clk 0:00:10]}  Kg6 {[%clk 0:00:30]} 38. Rb8 {[%clk 0:00:09]}  h6 {[%clk 0:00:26]} 39. Ne4 {[%clk 0:00:10]}  Ne5 {[%clk 0:00:22]} 40. Re8 {[%clk 0:00:09]}  Nc4 {[%clk 0:00:21]} 41. Re6+ {[%clk 0:00:09]}  Kh7 {[%clk 0:00:21]} 42. Rc6 {[%clk 0:00:10]}  Ne5 {[%clk 0:00:21]} 43. Ra6 {[%clk 0:00:10]}  Nd3 {[%clk 0:00:20]} 44. h5 {[%clk 0:00:10]}  Rb7 {[%clk 0:00:20]} 45. Nd6 {[%clk 0:00:09]}  Rd7 {[%clk 0:00:19]} 46. Kh4 {[%clk 0:00:08]}  Nc5 {[%clk 0:00:19]} 47. Rc6 {[%clk 0:00:07]}  Ne6 {[%clk 0:00:20]} 48. Nf5 {[%clk 0:00:07]}  Ng5 {[%clk 0:00:20]} 49. Kg3 {[%clk 0:00:07]}  Rb7 {[%clk 0:00:19]} 50. Rc5 {[%clk 0:00:06]}  Ne6 {[%clk 0:00:20]} 51. Re5 {[%clk 0:00:07]}  Nc7 {[%clk 0:00:20]} 52. Re7 {[%clk 0:00:07]}  Rxb5 {[%clk 0:00:20]} 53. Rxg7+ {[%clk 0:00:07]}  Kh8 {[%clk 0:00:21]} 54. Rxc7 {[%clk 0:00:07]}  Rxf5 {[%clk 0:00:21]} 55. Rxa7 {[%clk 0:00:08]}  Rxh5 {[%clk 0:00:22]} 56. Kf4 {[%clk 0:00:08]}  Rg5 {[%clk 0:00:22]} 57. g4 {[%clk 0:00:08]}  Rg8 {[%clk 0:00:22]} 58. Kf5 {[%clk 0:00:08]}  Rf8+ {[%clk 0:00:23]} 59. Kg6 {[%clk 0:00:08]}  Kg8 {[%clk 0:00:20]} 60. Rg7+ {[%clk 0:00:08]}  Kh8 {[%clk 0:00:21]} 61. Rf7 {[%clk 0:00:09]}  Rg8+ {[%clk 0:00:20]} 62. Kxh6 {[%clk 0:00:09]}  Ra8 {[%clk 0:00:19]} 63. Rh7+ {[%clk 0:00:08]}  Kg8 {[%clk 0:00:19]} 64. Rg7+ {[%clk 0:00:09]}  Kf8 {[%clk 0:00:19]} 65. Rg5 {[%clk 0:00:08]}  Ra1 {[%clk 0:00:20]} 66. Rf5+ {[%clk 0:00:08]}  Kg8 {[%clk 0:00:21]} 67. Kg6 {[%clk 0:00:09]}  Ra6+ {[%clk 0:00:20]} 68. Rf6 {[%clk 0:00:09]}  Ra1 {[%clk 0:00:21]} 69. g5 {[%clk 0:00:10]}  Rg1 {[%clk 0:00:22]} 70. f4 {[%clk 0:00:10]}  Kh8 {[%clk 0:00:22]} 71. Rb6 {[%clk 0:00:10]}  Rb1 {[%clk 0:00:21]} 72. Rxb1 {[%clk 0:00:10]} 1-0


[Site "https://www.chess.com"]

[Event "Titled Tuesday Blitz March 08 Late 2022"]
[White "Kozina, Anastasia"]
[Black "Bellissimo, Joseph F."]
[WhiteFideId "24174017"]
[BlackFideId "2609843"]
[WhiteElo "1993"]
[BlackElo "2061"]
[Result "0-1"]
[Round "03"]
[TimeControl "180+1"]
[Date "2022.03.09"]
[WhiteClock "0:00:02"]
[BlackClock "0:00:07"]

1. e4 {[%clk 0:03:00]}  e6 {[%clk 0:02:58]} 2. d4 {[%clk 0:03:00]}  d5 {[%clk 0:02:59]} 3. Nd2 {[%clk 0:03:00]}  Nf6 {[%clk 0:02:58]} 4. e5 {[%clk 0:03:00]}  Nfd7 {[%clk 0:02:59]} 5. Bd3 {[%clk 0:03:01]}  c5 {[%clk 0:02:59]} 6. c3 {[%clk 0:03:01]}  Nc6 {[%clk 0:03:00]} 7. Ne2 {[%clk 0:03:01]}  cxd4 {[%clk 0:03:01]} 8. cxd4 {[%clk 0:03:02]}  f6 {[%clk 0:03:02]} 9. exf6 {[%clk 0:03:02]}  Qxf6 {[%clk 0:03:02]} 10. Nf3 {[%clk 0:03:02]}  h6 {[%clk 0:03:03]} 11. O-O {[%clk 0:03:02]}  Bd6 {[%clk 0:03:03]} 12. a3 {[%clk 0:02:51]}  O-O {[%clk 0:03:01]} 13. Bb1 {[%clk 0:02:51]}  Rd8 {[%clk 0:02:59]} 14. Be3 {[%clk 0:02:44]}  Nf8 {[%clk 0:02:59]} 15. Qd2 {[%clk 0:02:44]}  Bd7 {[%clk 0:02:59]} 16. Bf4 {[%clk 0:02:44]}  Be8 {[%clk 0:02:57]} 17. Bxd6 {[%clk 0:02:35]}  Rxd6 {[%clk 0:02:57]} 18. Nf4 {[%clk 0:02:34]}  Ng6 {[%clk 0:02:44]} 19. Nh5 {[%clk 0:02:27]}  Qe7 {[%clk 0:02:40]} 20. Re1 {[%clk 0:02:21]}  Rad8 {[%clk 0:02:04]} 21. Qe3 {[%clk 0:02:12]}  Na5 {[%clk 0:01:41]} 22. b3 {[%clk 0:01:58]}  Rb6 {[%clk 0:01:32]} 23. Bc2 {[%clk 0:01:51]}  Rc8 {[%clk 0:01:31]} 24. Qd3 {[%clk 0:01:45]}  Rbc6 {[%clk 0:01:26]} 25. Ra2 {[%clk 0:01:32]}  Rc3 {[%clk 0:01:26]} 26. Qd2 {[%clk 0:01:23]}  Nxb3 {[%clk 0:01:22]} 27. Bxb3 {[%clk 0:01:21]}  Rxb3 {[%clk 0:01:23]} 28. Nf4 {[%clk 0:01:05]}  Nxf4 {[%clk 0:01:09]} 29. Qxf4 {[%clk 0:01:06]}  Bg6 {[%clk 0:01:09]} 30. Rae2 {[%clk 0:00:55]}  Rf8 {[%clk 0:01:01]} 31. Qe5 {[%clk 0:00:45]}  Be4 {[%clk 0:00:47]} 32. Nd2 {[%clk 0:00:44]}  Rxa3 {[%clk 0:00:37]} 33. Nxe4 {[%clk 0:00:45]}  dxe4 {[%clk 0:00:37]} 34. Qxe4 {[%clk 0:00:39]}  Ra4 {[%clk 0:00:25]} 35. Qe3 {[%clk 0:00:27]}  Qf6 {[%clk 0:00:22]} 36. Qb3 {[%clk 0:00:17]}  Rxd4 {[%clk 0:00:17]} 37. Qxb7 {[%clk 0:00:17]}  a5 {[%clk 0:00:16]} 38. Qb6 {[%clk 0:00:17]}  Rf4 {[%clk 0:00:11]} 39. g3 {[%clk 0:00:14]}  Rf3 {[%clk 0:00:10]} 40. Rxe6 {[%clk 0:00:08]}  Qc3 {[%clk 0:00:10]} 41. R6e2 {[%clk 0:00:05]}  Kh8 {[%clk 0:00:09]} 42. Qe6 {[%clk 0:00:04]}  a4 {[%clk 0:00:07]} 43. Qa6 {[%clk 0:00:03]}  a3 {[%clk 0:00:07]} 44. Qa4 {[%clk 0:00:02]}  Rxf2 {[%clk 0:00:07]} 0-1


[Site "https://www.chess.com"]